fUSD/lending_fUSD_20260201
["ID","MTS","AMOUNT","RATE_DAILY","PERIOD"]
[404222948,1769974669055,-299.796,0.00054,60]
[404222949,1769974669117,-1000.0,0.00054,120]
[404222950,1769974669178,-1424.21625571,0.00054,120]
[404222951,1769974669238,-1451.57354043,0.00054,120]
[404222952,1769974669296,-8763.05924867,0.00054,120]
[404222953,1769974669356,-500.0,0.00054,120]
[404222954,1769974669416,-1578.77803059,0.00054,120]
[404222955,1769974669474,-8157.96885587,0.00054,120]
[404222956,1769974669534,-624.86347152,0.00054,120]
[404222957,1769974669599,-275.09598954,0.00054,120]
[404222958,1769974669659,-1309.35429284,0.00054,120]
[404222959,1769974669720,-233.04034545,0.00054,120]
[404222960,1769974669782,-1132.0485862,0.00054,120]
[404222961,1769974669845,-9558.72656828,0.00054,120]
[404222962,1769974669905,-282.0,0.00054,120]
[404222963,1769974669965,-1363.88842303,0.00054,120]
[404222964,1769974670025,-8147.588839,0.00054,120]
[404222965,1769974670185,-400.0,0.00054,120]
[404222966,1769974670283,-469.523,0.00054,120]
[404222967,1769974670340,-208.35412165,0.00054,120]
[404222968,1769974670396,-161.83,0.00054,30]
[404222969,1769974670451,-150.0,0.00054,40]
[404222970,1769974670514,-150.0,0.00054,102]
[404222971,1769974670574,-3265.42470428,0.00054,120]
[404222972,1769974670636,-500.0,0.00054008,60]
[404222973,1769974670697,-500.0,0.00054008,60]
[404222974,1769974670756,-600.0,0.00054008,60]
[404222975,1769974670819,-150.0,0.00054139,120]
[404222976,1769974670880,-152.0,0.000543,120]
[404222977,1769974670941,-261.0,0.000544,40]
[404222978,1769974671007,-253.0,0.000544,83]
[404222979,1769974671066,-500.0,0.0005441,120]
[404222980,1769974671126,-161.67721076,0.000545,120]
[404222981,1769974671190,-153.0,0.000545,120]
[404222982,1769974671249,-150.0,0.00054712,30]
[404222983,1769974671310,-198.40902271,0.00054731,120]
[404222984,1769974671372,-4834.92647766,0.00054735,120]
[404222985,1769974671430,-6571.07545235,0.00054737,120]
[404222986,1769974671491,-815.34634197,0.0005474,120]
[404222987,1769974671551,-6578.22680909,0.00054741,120]
[404222988,1769974671611,-546.63828239,0.00054747,120]
[404222989,1769974671673,-26889.30156785,0.00054756,120]
[404222990,1769974671734,-165.56675846,0.00054764,120]
[404222991,1769974671796,-158.58,0.00054767,30]
[404222992,1769974671856,-168.696,0.00054767,30]
[404222993,1769974671922,-432.5292,0.00054767,30]
[404222994,1769974671984,-450.0,0.00054767,120]
[404222995,1769974672046,-1192.78813075,0.00054772,120]
[404222996,1769974672108,-27287.25418612,0.00054781,120]
[404222997,1769974672169,-1680.88511061,0.00054782,120]
[404222998,1769974672230,-2252.71602398,0.00054784,120]
[404222999,1769974672291,-14830.63,0.0005479,30]
[404223000,1769974672350,-1000.0,0.00054793,120]
[404223001,1769974672411,-154.75935112,0.00054794,120]
[404223002,1769974672485,-3200.0,0.00054795,30]
[404223003,1769974672545,-240.25357593,0.00054795,30]
[404223004,1769974672608,-203.11836362,0.00054795,30]
[404223005,1769974672671,-1000.0,0.00054795,120]
[404223006,1769974672729,-800.0,0.00054795,36]
[404223007,1769974672789,-800.0,0.00054795,36]
[404223008,1769974672849,-11118.92,0.00054795,120]
[404223009,1769974672910,-3932.75198709,0.000548,120]
[404223010,1769974672972,-331407.725568,0.000548,120]
[404223011,1769974673035,-3855.0273896,0.0005488,120]
[404223012,1769974673101,-150.0,0.0005489,120]
[404223013,1769974673167,-3925.21779244,0.000549,120]
[404223014,1769974673234,-289.93241026,0.000549,120]
[404223015,1769974673300,-1511.88043928,0.000549,120]
[404223016,1769974673366,-804.57,0.00054959,120]
[404223017,1769974673430,-2276.15155116,0.00055,120]
[404223018,1769974673496,-214.86796439,0.00055,120]
[404223019,1769974673561,-2040.24539475,0.00055,120]
[404223020,1769974673624,-499.999999,0.00055,30]
[404223021,1769974673688,-1000.0,0.00055,120]
[404223022,1769974673764,-200.0,0.00055,120]
[404223023,1769974673838,-116126.99290763,0.00055,120]
[404223024,1769974673913,-500.0,0.00055,120]
[404223025,1769974673978,-1000.0,0.00055,120]
[404223026,1769974674043,-150.0,0.00055,60]
[404223027,1769974674107,-2755.35915479,0.00055,120]
[404223028,1769974674173,-326207.0,0.00055,120]
[404223029,1769974674236,-787.41261318,0.00055,120]
[404223030,1769974674298,-701.71096708,0.00055,30]
[404223031,1769974674364,-2340.11,0.00055,120]
[404223032,1769974674441,-425.36,0.00055,120]
[404223033,1769974674505,-150.0,0.00055,105]
[404223034,1769974674567,-279.120091,0.00055,100]
[404223035,1769974674629,-150.0,0.00055019,120]
[404223036,1769974674691,-152.0,0.000551,120]
[404223037,1769974674754,-500.0,0.00055104,120]
[404223038,1769974674818,-500.0,0.00055104,120]
[404223039,1769974674882,-600.0,0.00055104,120]
[404223040,1769974674946,-153.0,0.000552,120]
[404223041,1769974675008,-400.0,0.000554,87]
[404223042,1769974675073,-1913468.27815696,0.000555,120]
[404223043,1769974676299,-151.0,0.00038356,120]
[404223044,1769974676360,-151.0,0.00038356,120]
[404223045,1769974676419,-151.0,0.00038356,120]
[404223046,1769974676475,-151.0,0.00038356,120]
[404223047,1769974676532,-234.943324,0.00038356,120]
[404223048,1769974676597,-235.04175875,0.00043287,120]
[404223049,1769974676671,-172.49,0.00043671,30]
[404223050,1769974676731,-232.51,0.00045,30]
[404223051,1769974676791,-240.54906563,0.00045749,94]
[404223052,1769974676849,-232.51,0.0004725,30]
[404223053,1769974676908,-232.51,0.00049613,30]
[404223054,1769974676969,-232.51,0.00052093,30]
[404223055,1769974677032,-2317370.90140732,0.000555,120]
[404223056,1769974677092,-5000000.0,0.000555,120]
[404223057,1769974677153,-2680212.0344443,0.000555,120]
[404223060,1769975199109,-493.48589183,0.00013243,2]
[404223061,1769975223708,-2985.8321676,0.00013126,2]
[404223062,1769975225082,-208.89990376,0.00013126,2]
[404223063,1769975226689,-291.43009624,0.00013126,2]
[404223127,1769975374073,-200.0,0.00013082,2]
[404223128,1769975374095,-1037.6178324,0.00013126,2]
[404223129,1769975374117,-1749.33410817,0.00013243,2]
[404223130,1769975374138,-150.00801726,0.00013456,2]
[404223131,1769975374160,-18.45227937,0.00013456,2]
[404223141,1769975431438,-261.0,0.00013456,2]
[404223143,1769975431448,-148.40772063,0.00013456,2]
[404223146,1769975431462,-436.74360326,0.00013476,2]
[404223148,1769975431471,-2500.0,0.00013564,2]
[404223150,1769975431481,-35500.82032246,0.00013564,2]
[404223152,1769975431491,-963.08383564,0.00013564,2]
[404223154,1769975431546,-3644.00137046,0.00013564,2]
[404223155,1769975431556,-3727.50947885,0.00013564,2]
[404223156,1769975431569,-5183.54,0.00013564,2]
[404223157,1769975431600,-23018.14231449,0.00013564,2]
[404223158,1769975431610,-37122.1020603,0.00013564,2]
[404223159,1769975431622,-70433.12244007,0.00013564,2]
[404223288,1769975437569,-19095.92117219,0.00013564,2]
[404223289,1769975437627,-1309.91744696,0.00013564,2]
[404223290,1769975437676,-98929.38597033,0.00013564,2]
[404223304,1769975439564,-207.91395484,0.00013563,2]
[404223305,1769975439573,-204.60286382,0.00013563,2]
[404223306,1769975439584,-500.0,0.00013563,2]
[404223307,1769975439593,-2486.42842999,0.00013564,2]
[404223308,1769975439628,-424.09978721,0.00013563,2]
[404223309,1769975439640,-42.23928952,0.00013563,2]
[404223310,1769975439649,-461.63556837,0.00013564,2]
[404223311,1769975439777,-1.7e-07,0.00013564,2]
[404223312,1769975439788,-2598124.38958972,0.00013564,2]
[404223313,1769975439798,-250.0,0.00013576,2]
[404223314,1769975439808,-300.0,0.00013588,2]
[404223315,1769975439819,-1200.0,0.00013597,2]
[404223316,1769975439829,-18352.14614327,0.00013598,2]
[404223317,1769975439838,-156.91177194,0.00013598,2]
[404223318,1769975439849,-202.47674058,0.00013598,2]
[404223319,1769975439858,-181.71380594,0.00013598,2]
[404223320,1769975439868,-3630.82660926,0.00013598,2]
[404223321,1769975439878,-300.0,0.00013623,2]
[404223322,1769975439888,-300.0,0.00013623,2]
[404223323,1769975439897,-233.64327591,0.00013623,2]
[404223324,1769975439909,-248.97090881,0.00013654,2]
[404223325,1769975439918,-150.0,0.00013662,2]
[404223326,1769975439927,-454.05062926,0.00013663,2]
[404223327,1769975439937,-500.0,0.00013663,2]
[404223328,1769975439946,-500.0,0.00013663,2]
[404223329,1769975439956,-500.0,0.00013663,2]
[404223330,1769975439966,-500.0,0.00013663,2]
[404223331,1769975439975,-500.0,0.00013663,2]
[404223332,1769975439984,-201.02862585,0.00013663,2]
[404223333,1769975439994,-500.0,0.00013663,2]
[404223334,1769975440004,-501.14291761,0.00013663,2]
[404223335,1769975440013,-500.0,0.00013663,2]
[404223336,1769975440023,-501.14291761,0.00013663,2]
[404223337,1769975440032,-500.0,0.00013663,2]
[404223338,1769975440041,-500.0,0.00013663,2]
[404223339,1769975440051,-501.14291761,0.00013663,2]
[404223340,1769975440061,-500.0,0.00013663,2]
[404223341,1769975440070,-500.0,0.00013663,2]
[404223342,1769975440079,-501.14291761,0.00013663,2]
[404223343,1769975440089,-500.0,0.00013663,2]
[404223345,1769975440099,-500.0,0.00013663,2]
[404223346,1769975440108,-500.0,0.00013663,2]
[404223347,1769975440117,-209.74,0.00013664,2]
[404223348,1769975440127,-342.84674472,0.00013698,2]
[404223349,1769975440137,-500.0,0.00013698,2]
[404223350,1769975440146,-500.0,0.00013698,2]
[404223351,1769975440155,-500.0,0.00013698,2]
[404223352,1769975440165,-500.0,0.00013698,2]
[404223353,1769975440174,-500.0,0.00013698,2]
[404223354,1769975440184,-531.74116736,0.00013698,2]
[404223355,1769975440195,-500.0,0.00013698,2]
[404223356,1769975440204,-500.0,0.00013698,2]
[404223357,1769975440214,-500.0,0.00013698,2]
[404223358,1769975440223,-500.0,0.00013698,2]
[404223359,1769975440232,-500.0,0.00013698,2]
[404223360,1769975440243,-500.0,0.00013698,2]
[404223361,1769975440253,-500.0,0.00013698,2]
[404223362,1769975440262,-500.0,0.00013698,2]
[404223363,1769975440276,-500.0,0.00013698,2]
[404223364,1769975440287,-187.94088231,0.00013698,2]
[404223365,1769975440297,-500.0,0.00013698,2]
[404223366,1769975440308,-500.0,0.00013698,2]
[404223367,1769975440320,-500.0,0.00013698,2]
[404223368,1769975440332,-500.0,0.00013698,2]
[404223369,1769975440343,-500.0,0.00013698,2]
[404223370,1769975440353,-500.0,0.00013698,2]
[404223371,1769975440364,-500.0,0.00013698,2]
[404223372,1769975440375,-500.0,0.00013698,2]
[404223373,1769975440603,-500.0,0.00013698,2]
[404223374,1769975440616,-500.0,0.00013698,2]
[404223375,1769975440634,-500.0,0.00013698,2]
[404223376,1769975440644,-500.0,0.00013698,2]
[404223377,1769975440654,-500.0,0.00013698,2]
[404223378,1769975440663,-500.0,0.00013698,2]
[404223379,1769975440672,-500.0,0.00013698,2]
[404223380,1769975440682,-500.0,0.00013698,2]
[404223381,1769975440692,-237.2586,0.00013764,2]
[404223382,1769975440702,-1000.31555263,0.00013799,2]
[404223383,1769975440712,-23626.87,0.00013854,2]
[404223384,1769975440722,-9999.99,0.00013854,2]
[404223385,1769975440732,-500.0,0.00013863,2]
[404223386,1769975440741,-500.0,0.00013863,2]
[404223387,1769975440752,-500.0,0.00013863,2]
[404223388,1769975440762,-500.0,0.00013863,2]
[404223389,1769975440771,-208.77047208,0.00013863,2]
[404223390,1769975440782,-605.661,0.00013863,2]
[404223391,1769975440792,-500.0,0.00013863,2]
[404223392,1769975440802,-500.0,0.00013863,2]
[404223393,1769975440811,-581.80646883,0.00013863,2]
[404223394,1769975440821,-1000.0,0.00013864,2]
[404223395,1769975440832,-500.0,0.00013963,2]
[404223396,1769975440843,-500.0,0.00013963,2]
[404223397,1769975440852,-500.0,0.00013963,2]
[404223398,1769975440863,-500.0,0.00013963,2]
[404223399,1769975440877,-500.0,0.00013963,2]
[404223400,1769975440886,-500.0,0.00013963,2]
[404223401,1769975440896,-494.33434811,0.00013963,2]
[404223402,1769975440905,-500.0,0.00013972,2]
[404223403,1769975440915,-166.86,0.00014011,2]
[404223404,1769975440925,-500.0,0.00014063,2]
[404223405,1769975440935,-500.0,0.00014063,2]
[404223406,1769975440945,-500.0,0.00014063,2]
[404223407,1769975440955,-500.0,0.00014063,2]
[404223408,1769975440964,-500.0,0.00014063,2]
[404223409,1769975440973,-500.0,0.00014063,2]
[404223410,1769975440983,-500.0,0.00014063,2]
[404223411,1769975440991,-500.0,0.00014063,2]
[404223412,1769975441002,-500.0,0.00014063,2]
[404223413,1769975441012,-409.78,0.00014063,2]
[404223414,1769975441022,-500.0,0.00014063,2]
[404223415,1769975441031,-500.0,0.00014063,2]
[404223416,1769975441041,-500.0,0.00014063,2]
[404223417,1769975441050,-500.0,0.00014063,2]
[404223418,1769975441059,-500.0,0.00014063,2]
[404223419,1769975441069,-500.0,0.00014063,2]
[404223420,1769975441078,-326.23818299,0.00014063,2]
[404223421,1769975441087,-500.0,0.00014063,2]
[404223422,1769975441096,-500.0,0.00014063,2]
[404223423,1769975441105,-500.0,0.00014063,2]
[404223424,1769975441114,-500.0,0.00014063,2]
[404223425,1769975441127,-500.0,0.00014063,2]
[404223426,1769975441137,-500.0,0.00014063,2]
[404223427,1769975441147,-500.0,0.00014063,2]
[404223428,1769975441156,-500.0,0.00014063,2]
[404223429,1769975441165,-500.0,0.00014063,2]
[404223430,1769975441174,-500.0,0.00014063,2]
[404223431,1769975441184,-500.0,0.00014063,2]
[404223432,1769975441194,-500.0,0.00014063,2]
[404223433,1769975441203,-500.0,0.00014063,2]
[404223434,1769975441213,-500.0,0.00014063,2]
[404223435,1769975441223,-500.0,0.00014063,2]
[404223436,1769975441232,-500.0,0.00014063,2]
[404223437,1769975441241,-500.0,0.00014063,2]
[404223438,1769975441250,-500.0,0.00014063,2]
[404223439,1769975441259,-343.302913,0.00014063,2]
[404223440,1769975441268,-500.0,0.00014063,2]
[404223441,1769975441278,-500.0,0.00014063,2]
[404223442,1769975441288,-500.0,0.00014063,2]
[404223443,1769975441297,-500.0,0.00014063,2]
[404223444,1769975441306,-500.0,0.00014063,2]
[404223445,1769975441315,-500.0,0.00014063,2]
[404223446,1769975441326,-18352.14614323,0.00014076,2]
[404223447,1769975441335,-3630.82660917,0.00014076,2]
[404223448,1769975441344,-174.9,0.00014088,2]
[404223449,1769975441353,-500.0,0.00014246,2]
[404223450,1769975441363,-202.47674057,0.00014315,2]
[404223451,1769975441371,-500.0,0.00014373,2]
[404223452,1769975441384,-500.0,0.00014373,2]
[404223453,1769975441393,-500.14405722,0.00014373,2]
[404223454,1769975441402,-501.67901363,0.00014373,2]
[404223455,1769975441411,-500.0,0.00014373,2]
[404223456,1769975441420,-500.0,0.00014373,2]
[404223457,1769975441429,-500.0,0.00014373,2]
[404223458,1769975441438,-500.0,0.00014373,2]
[404223459,1769975441447,-500.0,0.00014373,2]
[404223460,1769975441455,-206.4568071,0.00014373,2]
[404223461,1769975441464,-500.0,0.00014373,2]
[404223462,1769975441473,-500.0,0.00014373,2]
[404223463,1769975441482,-500.0,0.00014373,2]
[404223464,1769975441491,-500.0,0.00014373,2]
[404223465,1769975441500,-500.0,0.00014373,2]
[404223466,1769975441511,-500.0,0.00014373,2]
[404223467,1769975441520,-500.0,0.00014373,2]
[404223468,1769975441528,-500.0,0.00014373,2]
[404223469,1769975441539,-421.78920043,0.00014373,2]
[404223470,1769975441548,-500.0,0.00014373,2]
[404223471,1769975441557,-500.0,0.00014373,2]
[404223472,1769975441566,-500.0,0.00014373,2]
[404223473,1769975441575,-500.0,0.00014373,2]
[404223474,1769975441584,-18352.14614323,0.00014554,2]
[404223475,1769975441593,-3630.82660917,0.00014554,2]
[404223476,1769975441603,-166.86,0.00014567,2]
[404223477,1769975441612,-150.00801726,0.00014643,2]
[404223478,1769975441621,-255.0,0.00014782,2]
[404223479,1769975441632,-6416.41010822,0.0001485,2]
[404223480,1769975441641,-411.57510814,0.0001485,2]
[404223481,1769975441650,-5775.03120985,0.00014866,2]
[404223482,1769975441659,-227.7,0.00014872,2]
[404223483,1769975441669,-227.7,0.00014911,2]
[404223484,1769975441690,-2500.0,0.0001492,2]
[404223485,1769975441713,-300.0,0.0001492,2]
[404223486,1769975441723,-250.0,0.0001492,2]
[404223487,1769975441733,-195.0,0.0001492,2]
[404223488,1769975441745,-501.60267843,0.00014921,2]
[404223489,1769975441754,-861.09597745,0.00014921,2]
[404223490,1769975441765,-1000.0,0.00014921,2]
[404223491,1769975441776,-1000.0,0.00014921,2]
[404223492,1769975441786,-1000.0,0.00014921,2]
[404223493,1769975441795,-1000.0,0.00014921,2]
[404223494,1769975441804,-1114.54645313,0.00014921,2]
[404223495,1769975441813,-1000.0,0.00014921,2]
[404223496,1769975441822,-1000.0,0.00014921,2]
[404223497,1769975441832,-156.95111861,0.00014921,2]
[404223498,1769975441841,-501.53662804,0.00014921,2]
[404223499,1769975441850,-1000.0,0.00014921,2]
[404223500,1769975441859,-1009.39048434,0.00014921,2]
[404223501,1769975441870,-1000.0,0.00014921,2]
[404223502,1769975441881,-1000.0,0.00014921,2]
[404223503,1769975441890,-1000.0,0.00014921,2]
[404223504,1769975441899,-1251.80770273,0.00014921,2]
[404223505,1769975441908,-184.44067477,0.00014921,2]
[404223506,1769975441917,-378.38431742,0.00014921,2]
[404223507,1769975441927,-3254.62917349,0.00014921,2]
[404223508,1769975441939,-227.7,0.0001495,2]
[404223509,1769975441948,-355.42,0.00014953,2]
[404223510,1769975441967,-718.79,0.00014956,2]
[404223511,1769975441988,-1680.0,0.00014957,2]
[404223512,1769975441999,-193.25,0.00014966,2]
[404223513,1769975442011,-227.7,0.00014989,2]
[404223514,1769975442022,-174.9,0.00015027,2]
[404223515,1769975442042,-227.7,0.00015028,2]
[404223516,1769975442061,-18352.14614323,0.00015032,2]
[404223517,1769975442073,-156.91177193,0.00015032,2]
[404223518,1769975442084,-202.47674057,0.00015032,2]
[404223519,1769975442095,-3630.82660917,0.00015032,2]
[404223520,1769975442107,-227.7,0.00015068,2]
[404223521,1769975442118,-227.7,0.00015107,2]
[404223522,1769975442128,-166.86,0.00015122,2]
[404223523,1769975442140,-227.7,0.00015146,2]
[404223524,1769975442152,-227.7,0.00015185,2]
[404223525,1769975442163,-227.7,0.00015224,2]
[404223526,1769975442174,-227.7,0.00015263,2]
[404223527,1769975442186,-227.7,0.00015302,2]
[404223528,1769975442198,-227.7,0.00015341,2]
[404223529,1769975442209,-227.7,0.00015381,2]
[404223530,1769975442222,-227.7,0.0001542,2]
[404223531,1769975442235,-227.7,0.00015459,2]
[404223532,1769975442244,-1296.55427389,0.00015468,2]
[404223533,1769975442255,-839.60098248,0.00015468,2]
[404223534,1769975442266,-500.0,0.00015468,2]
[404223535,1769975442276,-1113.56434793,0.00015468,2]
[404223536,1769975442286,-227.7,0.00015498,2]
[404223537,1769975442296,-163.69,0.00015502,2]
[404223538,1769975442307,-18352.14614323,0.0001551,2]
[404223539,1769975442318,-3630.82660917,0.0001551,2]
[404223541,1769975442328,-227.7,0.00015537,2]
[404223543,1769975442339,-227.7,0.00015576,2]
[404223544,1769975442347,-227.7,0.00015615,2]
[404223545,1769975442356,-209.73,0.00015664,7]
[404223546,1769975442366,-166.86,0.00015677,2]
[404223547,1769975442376,-202.47674057,0.00015749,2]
[404223548,1769975442386,-181.71380593,0.00015749,2]
[404223549,1769975442396,-150.00801726,0.0001583,2]
[404223550,1769975442408,-372.57983118,0.00015842,2]
[404223552,1769975442419,-983.24406927,0.00015842,2]
[404223553,1769975442430,-494.3343481,0.00015932,2]
[404223554,1769975442442,-174.9,0.00015966,2]
[404223555,1769975442452,-18352.14614323,0.00015988,2]
[404223556,1769975442464,-3630.82660917,0.00015988,2]
[404223557,1769975442475,-150.0,0.00015998,2]
[404223558,1769975442486,-536.29,0.00016175,2]
[404223559,1769975442497,-500.44195081,0.00016215,2]
[404223560,1769975442507,-500.45016231,0.00016215,2]
[404223561,1769975442519,-500.0,0.00016215,2]
[404223562,1769975442529,-161.96888035,0.00016215,2]
[404223563,1769975442539,-161.52754955,0.00016215,2]
[404223564,1769975442549,-500.99163664,0.00016215,2]
[404223565,1769975442558,-500.77325853,0.00016215,2]
[404223566,1769975442568,-500.51837195,0.00016215,2]
[404223567,1769975442579,-500.8695205,0.00016215,2]
[404223568,1769975442592,-500.0,0.00016215,2]
[404223569,1769975442605,-500.0,0.00016215,2]
[404223570,1769975442617,-500.73429157,0.00016215,2]
[404223571,1769975442628,-500.0,0.00016215,2]
[404223572,1769975442637,-500.82999627,0.00016215,2]
[404223573,1769975442647,-500.0,0.00016215,2]
[404223574,1769975442658,-500.0,0.00016215,2]
[404223575,1769975442668,-500.52349132,0.00016215,2]
[404223576,1769975442679,-500.28379137,0.00016215,2]
[404223577,1769975442688,-500.0,0.00016215,2]
[404223578,1769975442699,-333.63674101,0.00016215,2]
[404223579,1769975442708,-500.36134052,0.00016215,2]
[404223580,1769975442717,-500.82401357,0.00016215,2]
[404223581,1769975442727,-160.07078646,0.00016215,2]
[404223582,1769975442735,-500.7971561,0.00016215,2]
[404223583,1769975442746,-500.13624415,0.00016215,2]
[404223584,1769975442755,-500.0,0.00016215,2]
[404223585,1769975442765,-175.77488165,0.00016215,2]
[404223586,1769975442774,-500.89443715,0.00016215,2]
[404223587,1769975442783,-500.72482748,0.00016215,2]
[404223588,1769975442792,-500.8043205,0.00016215,2]
[404223589,1769975442802,-626.57032524,0.00016215,2]
[404223590,1769975442810,-500.40958663,0.00016215,2]
[404223591,1769975442820,-500.69372146,0.00016215,2]
[404223592,1769975442829,-432.17920076,0.00016215,2]
[404223593,1769975442839,-208.40720819,0.00016215,2]
[404223594,1769975442848,-500.76188298,0.00016215,2]
[404223595,1769975442859,-500.91864191,0.00016215,2]
[404223596,1769975442870,-210.3644324,0.00016215,2]
[404223597,1769975442880,-501.26182196,0.00016215,2]
[404223598,1769975442889,-500.9734639,0.00016215,2]
[404223599,1769975442898,-160.18403092,0.00016215,2]
[404223600,1769975442907,-500.67654953,0.00016215,2]
[404223601,1769975442917,-284.47980203,0.00016215,2]
[404223602,1769975442926,-160.17285395,0.00016215,2]
[404223603,1769975442935,-500.0,0.00016215,2]
[404223604,1769975442944,-500.60514284,0.00016215,2]
[404223605,1769975442953,-500.0,0.00016215,2]
[404223606,1769975442962,-500.22501364,0.00016215,2]
[404223607,1769975442971,-512.45868971,0.00016215,2]
[404223608,1769975442981,-169.74769321,0.00016215,2]
[404223609,1769975442990,-162.70376611,0.00016215,2]
[404223610,1769975443000,-392.58436043,0.00016215,2]
[404223611,1769975443011,-500.44403009,0.00016215,2]
[404223612,1769975443021,-500.78479559,0.00016215,2]
[404223613,1769975443031,-500.0,0.00016215,2]
[404223614,1769975443041,-208.86257805,0.00016215,2]
[404223615,1769975443050,-500.0,0.00016215,2]
[404223616,1769975443060,-500.28380904,0.00016215,2]
[404223617,1769975443069,-501.09354787,0.00016215,2]
[404223618,1769975443078,-500.84256403,0.00016215,2]
[404223619,1769975443087,-164.79829562,0.00016215,2]
[404223620,1769975443096,-501.49582385,0.00016215,2]
[404223621,1769975443106,-165.95473765,0.00016215,2]
[404223623,1769975443115,-500.23746588,0.00016215,2]
[404223624,1769975443124,-500.58361671,0.00016215,2]
[404223625,1769975443133,-501.55130892,0.00016215,2]
[404223626,1769975443142,-162.14060441,0.00016215,2]
[404223627,1769975443151,-509.42618613,0.00016215,2]
[404223628,1769975443160,-500.0,0.00016215,2]
[404223629,1769975443169,-471.58451912,0.00016215,2]
[404223630,1769975443179,-500.54404873,0.00016215,2]
[404223631,1769975443188,-309.32938346,0.00016215,2]
[404223632,1769975443198,-500.0,0.00016215,2]
[404223633,1769975443207,-1734.55908583,0.00016342,2]
[404223634,1769975443216,-6416.41010821,0.00016375,2]
[404223635,1769975443226,-411.57510814,0.00016375,2]
[404223636,1769975443236,-5775.03120985,0.00016383,2]
[404223637,1769975443245,-500.0,0.00016438,2]
[404223638,1769975443254,-500.0,0.00016438,2]
[404223639,1769975443263,-500.0,0.00016438,2]
[404223640,1769975443274,-500.0,0.00016438,2]
[404223641,1769975443284,-500.0,0.00016438,2]
[404223642,1769975443295,-639.68949456,0.00016438,2]
[404223643,1769975443305,-2008.34441638,0.00016438,2]
[404223644,1769975443314,-264.43161989,0.00016438,2]
[404223645,1769975443324,-536.29,0.00016449,2]
[404223646,1769975443335,-2351.0,0.00016452,2]
[404223647,1769975443344,-18352.14614323,0.00016466,2]
[404223648,1769975443354,-156.91177193,0.00016466,2]
[404223649,1769975443364,-202.47674057,0.00016466,2]
[404223650,1769975443375,-3630.82660917,0.00016466,2]
[404223651,1769975443384,-159.05238023,0.0001669,2]
[404223652,1769975443393,-536.29,0.00016723,2]
[404223653,1769975443402,-718.79,0.00016825,2]
[404223654,1769975443411,-174.9,0.00016905,2]
[404223655,1769975443420,-18352.14614323,0.00016944,2]
[404223656,1769975443429,-3630.82660917,0.00016944,2]
[404223657,1769975443438,-536.29,0.00016997,2]
[404223658,1769975443448,-500.0,0.00017014,2]
[404223659,1769975443457,-150.00801726,0.00017017,2]
[404223660,1769975443466,-178.70097198,0.00017099,2]
[404223661,1769975443475,-166.66,0.00017163,2]
[404223662,1769975443484,-202.47674057,0.00017183,2]
[404223663,1769975443494,-536.29,0.00017271,2]
[404223664,1769975443503,-2314.0,0.000174,2]
[404223665,1769975443515,-18352.14614323,0.00017422,2]
[404223666,1769975443524,-3630.82660917,0.00017422,2]
[404223667,1769975443533,-1898.85844425,0.00017476,2]
[404223668,1769975443544,-250.0,0.00017487,2]
[404223669,1769975443552,-166.66,0.00017525,2]
[404223670,1769975443564,-457.29474664,0.0001764,2]
[404223671,1769975443574,-1191.0,0.00017705,2]
[404223672,1769975443585,-1079.0,0.00017717,2]
[404223673,1769975443594,-1191.0,0.0001782,2]
[404223674,1769975443604,-2594.79665524,0.00017842,2]